[Event "Chpt France Universitaire 2024"]
[Site "Bastia, France"]
[Date "2024.04.07"]
[Round "7.9"]
[White "Aghamir Alrobiai, Nizar"]
[Black "Sumarriva Paulin, Laura"]
[Result "1/2-1/2"]
[TimeControl "15min+5s"]
[WhiteElo "2098"]
[BlackElo "2046"]

1. e4 {[%clk 00:12:47]} {[%emt 00:02:21]} e6 {[%clk 00:15:05]} {[%emt
00:00:03]} 2. d4 {[%clk 00:12:47]} {[%emt 00:00:02]} d5 {[%clk 00:15:05]}
{[%emt 00:00:01]} 3. Nd2 {[%clk 00:12:47]} {[%emt 00:00:02]} c5 {[%clk
00:15:04]} {[%emt 00:00:07]} 4. Ngf3 {[%clk 00:12:35]} {[%emt 00:00:16]} Nc6
{[%clk 00:14:45]} {[%emt 00:00:24]} 5. exd5 {[%clk 00:12:06]} {[%emt 00:00:35]}
exd5 {[%clk 00:14:45]} {[%emt 00:00:04]} 6. Be2 {[%clk 00:12:06]} {[%emt
00:00:05]} Nf6 {[%clk 00:14:04]} {[%emt 00:00:46]} 7. O-O {[%clk 00:12:06]}
{[%emt 00:00:03]} cxd4 {[%clk 00:13:57]} {[%emt 00:00:12]} 8. Nb3 {[%clk
00:12:06]} {[%emt 00:00:04]} Bd6 {[%clk 00:13:52]} {[%emt 00:00:10]} 9. Nbxd4
{[%clk 00:12:06]} {[%emt 00:00:05]} O-O {[%clk 00:13:32]} {[%emt 00:00:25]} 10.
Bg5 {[%clk 00:12:06]} {[%emt 00:00:02]} Bg4 {[%clk 00:13:00]} {[%emt 00:00:37]}
11. h3 {[%clk 00:10:50]} {[%emt 00:01:21]} Bh5 {[%clk 00:12:16]} {[%emt
00:00:49]} 12. Nf5 {[%clk 00:10:46]} {[%emt 00:00:09]} Bc7 {[%clk 00:10:13]}
{[%emt 00:02:08]} 13. Bh4 {[%clk 00:08:12]} {[%emt 00:02:39]} Bg6 {[%clk
00:08:49]} {[%emt 00:01:29]} 14. N3d4 {[%clk 00:08:03]} {[%emt 00:00:15]} Qd7
{[%clk 00:06:18]} {[%emt 00:02:36]} 15. Bg4 {[%clk 00:06:02]} {[%emt 00:02:05]}
Nxg4 {[%clk 00:05:36]} {[%emt 00:00:47]} 16. Qxg4 {[%clk 00:06:02]} {[%emt
00:00:03]} Ne5 {[%clk 00:04:41]} {[%emt 00:01:01]} 17. Ne7+ {[%clk 00:05:20]}
{[%emt 00:00:47]} Kh8 {[%clk 00:04:14]} {[%emt 00:00:31]} 18. Qxd7 {[%clk
00:04:56]} {[%emt 00:00:30]} Nxd7 {[%clk 00:04:14]} {[%emt 00:00:04]} 19. Nxg6+
{[%clk 00:04:22]} {[%emt 00:00:39]} hxg6 {[%clk 00:04:07]} {[%emt 00:00:12]} 20.
Rad1 {[%clk 00:04:22]} {[%emt 00:00:05]} Be5 {[%clk 00:02:33]} {[%emt
00:01:39]} 21. c3 {[%clk 00:04:07]} {[%emt 00:00:20]} Bf6 {[%clk 00:02:33]}
{[%emt 00:00:04]} 22. Bxf6 {[%clk 00:03:53]} {[%emt 00:00:19]} Nxf6 {[%clk
00:02:33]} {[%emt 00:00:03]} 23. Rd3 {[%clk 00:03:53]} {[%emt 00:00:01]} Rad8
{[%clk 00:01:57]} {[%emt 00:00:41]} 24. Rfd1 {[%clk 00:03:53]} {[%emt
00:00:02]} a6 {[%clk 00:01:34]} {[%emt 00:00:28]} 25. Nf3 {[%clk 00:03:50]}
{[%emt 00:00:08]} Rd6 {[%clk 00:01:10]} {[%emt 00:00:28]} 26. Ne5 {[%clk
00:03:40]} {[%emt 00:00:15]} Kg8 {[%clk 00:01:05]} {[%emt 00:00:11]} 27. Rd4
{[%clk 00:03:04]} {[%emt 00:00:40]} b5 {[%clk 00:00:54]} {[%emt 00:00:16]} 28.
Nd3 {[%clk 00:02:41]} {[%emt 00:00:28]} Rfd8 {[%clk 00:00:33]} {[%emt
00:00:27]} 29. Nc5 {[%clk 00:02:34]} {[%emt 00:00:12]} Rc8 {[%clk 00:00:26]}
{[%emt 00:00:12]} 30. Nd3 {[%clk 00:02:20]} {[%emt 00:00:18]} Rcd8 {[%clk
00:00:26]} {[%emt 00:00:05]} 31. a4 {[%clk 00:02:20]} {[%emt 00:00:02]} Rb8
{[%clk 00:00:25]} {[%emt 00:00:06]} 32. axb5 {[%clk 00:01:59]} {[%emt
00:00:27]} axb5 {[%clk 00:00:18]} {[%emt 00:00:12]} 33. Nb4 {[%clk 00:01:59]}
{[%emt 00:00:02]} Rbd8 {[%clk 00:00:18]} {[%emt 00:00:03]} 34. g4 {[%clk
00:01:59]} {[%emt 00:00:01]} g5 {[%clk 00:00:16]} {[%emt 00:00:07]} 35. h4
{[%clk 00:01:59]} {[%emt 00:00:01]} gxh4 {[%clk 00:00:16]} {[%emt 00:00:04]} 36.
g5 {[%clk 00:01:59]} {[%emt 00:00:01]} Ne4 {[%clk 00:00:16]} {[%emt 00:00:04]}
37. Nxd5 {[%clk 00:01:42]} {[%emt 00:00:22]} Kf8 {[%clk 00:00:16]} {[%emt
00:00:02]} 38. f4 {[%clk 00:01:23]} {[%emt 00:00:24]} Ng3 {[%clk 00:00:16]}
{[%emt 00:00:02]} 39. Kh2 {[%clk 00:01:03]} {[%emt 00:00:25]} Nf5 {[%clk
00:00:16]} {[%emt 00:00:03]} 40. R4d3 {[%clk 00:01:01]} {[%emt 00:00:07]} Ne7
{[%clk 00:00:13]} {[%emt 00:00:08]} 41. Nb4 {[%clk 00:01:00]} {[%emt 00:00:05]}
Rxd3 {[%clk 00:00:13]} {[%emt 00:00:02]} 42. Rxd3 {[%clk 00:01:00]} {[%emt
00:00:02]} Rxd3 {[%clk 00:00:13]} {[%emt 00:00:04]} 43. Nxd3 {[%clk 00:01:00]}
{[%emt 00:00:01]} Nf5 {[%clk 00:00:12]} {[%emt 00:00:07]} 44. Kh3 {[%clk
00:00:57]} {[%emt 00:00:07]} Ke7 {[%clk 00:00:12]} {[%emt 00:00:03]} 45. Ne5
{[%clk 00:00:54]} {[%emt 00:00:08]} g6 {[%clk 00:00:09]} {[%emt 00:00:08]} 46.
Nf3 {[%clk 00:00:50]} {[%emt 00:00:08]} Ke6 {[%clk 00:00:09]} {[%emt 00:00:04]}
47. Nxh4 {[%clk 00:00:39]} {[%emt 00:00:16]} Ne3 {[%clk 00:00:09]} {[%emt
00:00:01]} 48. Nf3 {[%clk 00:00:33]} {[%emt 00:00:11]} Nd1 {[%clk 00:00:09]}
{[%emt 00:00:05]} 49. Nd4+ {[%clk 00:00:33]} {[%emt 00:00:03]} Kd5 {[%clk
00:00:09]} {[%emt 00:00:01]} 50. Nxb5 {[%clk 00:00:32]} {[%emt 00:00:05]} Nxb2
{[%clk 00:00:09]} {[%emt 00:00:02]} 51. Kg4 {[%clk 00:00:29]} {[%emt 00:00:08]}
Na4 {[%clk 00:00:09]} {[%emt 00:00:03]} 52. Nc7+ {[%clk 00:00:24]} {[%emt
00:00:11]} Kc6 {[%clk 00:00:09]} {[%emt 00:00:02]} 53. Ne8 {[%clk 00:00:24]}
{[%emt 00:00:04]} Nxc3 {[%clk 00:00:09]} {[%emt 00:00:02]} 54. Nf6 {[%clk
00:00:20]} {[%emt 00:00:08]} Kd6 {[%clk 00:00:09]} {[%emt 00:00:02]} 55. Kf3
{[%clk 00:00:19]} {[%emt 00:00:06]} Ke6 {[%clk 00:00:09]} {[%emt 00:00:02]} 56.
Ng4 {[%clk 00:00:19]} {[%emt 00:00:02]} Nd5 {[%clk 00:00:09]} {[%emt 00:00:02]}
57. Ne5 {[%clk 00:00:19]} {[%emt 00:00:04]} Nc3 {[%clk 00:00:09]} {[%emt
00:00:03]} 58. Ke3 {[%clk 00:00:19]} {[%emt 00:00:05]} Nd5+ {[%clk 00:00:09]}
{[%emt 00:00:02]} 59. Ke4 {[%clk 00:00:19]} {[%emt 00:00:03]} Ne7 {[%clk
00:00:09]} {[%emt 00:00:03]} 60. Nd3 {[%clk 00:00:18]} {[%emt 00:00:06]} Nc6
{[%clk 00:00:09]} {[%emt 00:00:05]} 61. Nc5+ {[%clk 00:00:18]} {[%emt
00:00:02]} Kd6 {[%clk 00:00:09]} {[%emt 00:00:02]} 62. Nb7+ {[%clk 00:00:17]}
{[%emt 00:00:07]} Ke6 {[%clk 00:00:09]} {[%emt 00:00:03]} 63. Nc5+ {[%clk
00:00:13]} {[%emt 00:00:04]} Kd6 {[%clk 00:00:09]} {[%emt 00:00:01]} 64. Nd3
{[%clk 00:00:17]} {[%emt 00:00:05]} Ke6 {[%clk 00:00:09]} {[%emt 00:00:02]} 65.
Nf2 {[%clk 00:00:14]} {[%emt 00:00:07]} Ne7 {[%clk 00:00:09]} {[%emt 00:00:05]}
66. Ng4 {[%clk 00:00:14]} {[%emt 00:00:02]} Nc6 {[%clk 00:00:09]} {[%emt
00:00:01]} 67. Nf6 {[%clk 00:00:14]} {[%emt 00:00:02]} Ne7 {[%clk 00:00:09]}
{[%emt 00:00:02]} 68. Ne8 {[%clk 00:00:14]} {[%emt 00:00:02]} Nf5 {[%clk
00:00:08]} {[%emt 00:00:07]} 69. Nc7+ {[%clk 00:00:14]} {[%emt 00:00:02]} Kd7
{[%clk 00:00:08]} {[%emt 00:00:02]} 70. Nd5 {[%clk 00:00:14]} {[%emt 00:00:04]}
Ke6 {[%clk 00:00:08]} {[%emt 00:00:02]} 71. Nc7+ {[%clk 00:00:14]} {[%emt
00:00:02]} Kd7 {[%clk 00:00:08]} 72. Nb5 {[%clk 00:00:14]} {[%emt 00:00:01]}
Ke6 {[%clk 00:00:08]} {[%emt 00:00:01]} 73. Nc7+ {[%clk 00:00:13]} {[%emt
00:00:07]} Kd7 {[%clk 00:00:08]} 74. Nd5 {[%clk 00:00:13]} Ke6 {[%clk
00:00:08]} {[%emt 00:00:02]} 75. Nc3 {[%clk 00:00:13]} {[%emt 00:00:02]} Kd6
{[%clk 00:00:08]} {[%emt 00:00:02]} 76. Ne2 {[%clk 00:00:13]} {[%emt 00:00:03]}
Ke6 {[%clk 00:00:08]} {[%emt 00:00:02]} 77. Nc1 {[%clk 00:00:10]} {[%emt
00:00:09]} Kd6 {[%clk 00:00:08]} {[%emt 00:00:01]} 78. Nd3 {[%clk 00:00:10]}
Ke6 {[%clk 00:00:08]} {[%emt 00:00:02]} 79. Ne5 {[%clk 00:00:10]} {[%emt
00:00:02]} Ne7 {[%clk 00:00:08]} {[%emt 00:00:02]} 80. Nf3 {[%clk 00:00:10]}
{[%emt 00:00:05]} Nf5 {[%clk 00:00:08]} {[%emt 00:00:02]} 81. Nd4+ {[%clk
00:00:10]} {[%emt 00:00:04]} Nxd4 {[%clk 00:00:08]} {[%emt 00:00:02]} 82. Kxd4
{[%clk 00:00:10]} {[%emt 00:00:01]} Kf5 {[%clk 00:00:08]} {[%emt 00:00:01]} 83.
Ke3 {[%clk 00:00:10]} f6 {[%clk 00:00:08]} {[%emt 00:00:03]} 84. gxf6 {[%clk
00:00:10]} {[%emt 00:00:01]} Kxf6 {[%clk 00:00:08]} {[%emt 00:00:01]} 85. Ke4
{[%clk 00:00:10]} g5 {[%clk 00:00:08]} {[%emt 00:00:03]} 86. fxg5+ {[%clk
00:00:10]} {[%emt 00:00:01]} Kxg5 {[%emt 00:00:04]} 1/2-1/2

[Event "Chpt France Universitaire 2024"]
[Site "Bastia, France"]
[Date "2024.04.07"]
[Round "7.10"]
[White "Courjal, Pauline"]
[Black "Pacteau, Andre"]
[Result "0-1"]
[TimeControl "15min+5s"]
[WhiteElo "1982"]
[BlackElo "2099"]

1. d4 {[%clk 00:15:05]} {[%emt 00:00:02]} Nf6 {[%clk 00:15:05]} {[%emt
00:00:03]} 2. c4 {[%clk 00:15:05]} {[%emt 00:00:02]} g6 {[%clk 00:15:05]}
{[%emt 00:00:04]} 3. g3 {[%clk 00:15:05]} {[%emt 00:00:02]} Bg7 {[%clk
00:15:05]} {[%emt 00:00:03]} 4. Bg2 {[%clk 00:15:05]} {[%emt 00:00:01]} d6
{[%clk 00:15:05]} {[%emt 00:00:03]} 5. Nc3 {[%clk 00:15:05]} {[%emt 00:00:04]}
O-O {[%clk 00:15:05]} {[%emt 00:00:03]} 6. Nf3 {[%clk 00:15:05]} {[%emt
00:00:02]} Nc6 {[%clk 00:15:05]} {[%emt 00:00:03]} 7. O-O {[%clk 00:14:55]}
{[%emt 00:00:14]} Bg4 {[%clk 00:15:05]} {[%emt 00:00:02]} 8. d5 {[%clk
00:14:42]} {[%emt 00:00:19]} Bxf3 {[%clk 00:15:03]} {[%emt 00:00:07]} 9. exf3
{[%clk 00:14:34]} {[%emt 00:00:13]} Na5 {[%clk 00:14:44]} {[%emt 00:00:25]} 10.
Qd3 {[%clk 00:14:21]} {[%emt 00:00:18]} c5 {[%clk 00:14:44]} {[%emt 00:00:06]}
11. dxc6 {[%clk 00:12:32]} {[%emt 00:01:54]} bxc6 {[%clk 00:13:05]} {[%emt
00:01:44]} 12. b4 {[%clk 00:11:26]} {[%emt 00:01:10]} Nb7 {[%clk 00:13:05]}
{[%emt 00:00:03]} 13. f4 {[%clk 00:11:26]} {[%emt 00:00:03]} d5 {[%clk
00:09:15]} {[%emt 00:03:55]} 14. Be3 {[%clk 00:09:14]} {[%emt 00:02:17]} e6
{[%clk 00:08:28]} {[%emt 00:00:51]} 15. Rab1 {[%clk 00:08:37]} {[%emt
00:00:42]} Nd6 {[%clk 00:08:24]} {[%emt 00:00:09]} 16. Bc5 {[%clk 00:07:21]}
{[%emt 00:01:22]} Re8 {[%clk 00:07:10]} {[%emt 00:01:19]} 17. Bxd6 {[%clk
00:07:21]} {[%emt 00:00:02]} Qxd6 {[%clk 00:07:10]} {[%emt 00:00:04]} 18. b5
{[%clk 00:07:21]} {[%emt 00:00:03]} Rec8 {[%clk 00:06:55]} {[%emt 00:00:20]} 19.
Rfc1 {[%clk 00:06:43]} {[%emt 00:00:43]} Qa3 {[%clk 00:03:48]} {[%emt
00:03:12]} 20. Qe2 {[%clk 00:05:16]} {[%emt 00:01:31]} cxb5 {[%clk 00:02:22]}
{[%emt 00:01:32]} 21. Nxb5 {[%clk 00:04:53]} {[%emt 00:00:28]} Qc5 {[%clk
00:01:48]} {[%emt 00:00:39]} 22. Qe3 {[%clk 00:04:15]} {[%emt 00:00:42]} Qxe3
{[%clk 00:00:56]} {[%emt 00:00:58]} 23. fxe3 {[%clk 00:04:15]} Bf8 {[%clk
00:00:21]} {[%emt 00:00:40]} 24. Nd4 {[%clk 00:03:00]} {[%emt 00:01:19]} Rab8
{[%clk 00:00:21]} {[%emt 00:00:06]} 25. Rxb8 {[%clk 00:02:57]} {[%emt
00:00:08]} Rxb8 {[%clk 00:00:21]} {[%emt 00:00:01]} 26. c5 {[%clk 00:02:42]}
{[%emt 00:00:20]} Rc8 {[%clk 00:00:15]} {[%emt 00:00:11]} 27. c6 {[%clk
00:02:42]} {[%emt 00:00:03]} Ng4 {[%clk 00:00:12]} {[%emt 00:00:08]} 28. Rc3
{[%clk 00:02:38]} {[%emt 00:00:08]} Bg7 {[%clk 00:00:12]} {[%emt 00:00:03]} 29.
Ra3 {[%clk 00:01:33]} {[%emt 00:01:10]} Nxe3 {[%clk 00:00:12]} {[%emt
00:00:02]} 30. Nb5 {[%clk 00:01:08]} {[%emt 00:00:30]} Nxg2 {[%clk 00:00:12]}
{[%emt 00:00:01]} 31. Kxg2 {[%clk 00:01:08]} {[%emt 00:00:02]} Rxc6 {[%clk
00:00:12]} {[%emt 00:00:02]} 32. Rxa7 {[%clk 00:01:08]} {[%emt 00:00:04]} Bf6
{[%clk 00:00:10]} {[%emt 00:00:07]} 33. a4 {[%clk 00:01:08]} {[%emt 00:00:02]}
d4 {[%clk 00:00:10]} {[%emt 00:00:01]} 34. Rd7 {[%clk 00:01:08]} {[%emt
00:00:02]} Rc4 {[%clk 00:00:10]} {[%emt 00:00:02]} 35. a5 {[%clk 00:01:08]}
{[%emt 00:00:04]} Ra4 {[%clk 00:00:10]} 36. a6 {[%clk 00:01:08]} {[%emt
00:00:03]} Rxa6 {[%clk 00:00:09]} {[%emt 00:00:05]} 37. Nxd4 {[%clk 00:01:08]}
{[%emt 00:00:01]} Ra2+ {[%clk 00:00:09]} {[%emt 00:00:04]} 38. Kf3 {[%clk
00:01:08]} {[%emt 00:00:01]} Rd2 {[%clk 00:00:09]} 39. Ke3 {[%clk 00:01:06]}
{[%emt 00:00:06]} Rxd4 {[%clk 00:00:09]} {[%emt 00:00:02]} 40. Rxd4 {[%clk
00:01:06]} {[%emt 00:00:01]} Bxd4+ {[%clk 00:00:09]} 41. Kxd4 {[%clk 00:01:06]}
{[%emt 00:00:01]} Kg7 {[%clk 00:00:09]} {[%emt 00:00:05]} 42. Ke5 {[%clk
00:01:06]} {[%emt 00:00:02]} h6 {[%clk 00:00:09]} {[%emt 00:00:04]} 43. h3
{[%clk 00:01:06]} {[%emt 00:00:05]} g5 {[%clk 00:00:09]} {[%emt 00:00:03]} 44.
f5 {[%clk 00:01:04]} {[%emt 00:00:07]} exf5 {[%clk 00:00:09]} {[%emt 00:00:02]}
45. Kxf5 {[%clk 00:01:04]} {[%emt 00:00:01]} f6 {[%clk 00:00:08]} {[%emt
00:00:06]} 46. Ke6 {[%clk 00:00:54]} {[%emt 00:00:14]} h5 {[%clk 00:00:07]}
{[%emt 00:00:06]} 47. Kf5 {[%clk 00:00:49]} {[%emt 00:00:10]} Kf7 {[%clk
00:00:07]} {[%emt 00:00:02]} 48. h4 {[%clk 00:00:34]} {[%emt 00:00:20]} g4
{[%clk 00:00:07]} {[%emt 00:00:06]} 49. Kf4 {[%clk 00:00:34]} {[%emt 00:00:01]}
Ke6 {[%clk 00:00:07]} 50. Ke4 {[%clk 00:00:34]} {[%emt 00:00:02]} f5+ {[%clk
00:00:07]} {[%emt 00:00:03]} 51. Kd4 {[%clk 00:00:25]} {[%emt 00:00:14]} Kd6
{[%clk 00:00:07]} {[%emt 00:00:04]} 52. Ke3 {[%clk 00:00:23]} {[%emt 00:00:06]}
Ke5 {[%clk 00:00:07]} 53. Kf2 {[%clk 00:00:23]} {[%emt 00:00:02]} Kd4 {[%clk
00:00:07]} {[%emt 00:00:02]} 54. Kg2 {[%clk 00:00:23]} {[%emt 00:00:04]} Ke3
{[%clk 00:00:07]} {[%emt 00:00:01]} 0-1

[Event "Chpt France Universitaire 2024"]
[Site "Bastia, France"]
[Date "2024.04.07"]
[Round "7.11"]
[White "Lordier, Sophia"]
[Black "Dubuisson, Samuel"]
[Result "0-1"]
[TimeControl "15min+5s"]
[WhiteElo "1934"]
[BlackElo "2129"]

1. d4 {[%clk 00:15:05]} Nf6 {[%clk 00:14:00]} {[%emt 00:01:11]} 2. c4 {[%clk
00:15:05]} {[%emt 00:00:01]} e6 {[%clk 00:14:00]} {[%emt 00:00:05]} 3. g3
{[%clk 00:15:05]} {[%emt 00:00:01]} d5 {[%clk 00:14:00]} {[%emt 00:00:04]} 4.
Nf3 {[%clk 00:15:05]} {[%emt 00:00:01]} Be7 {[%clk 00:14:00]} {[%emt 00:00:04]}
5. Bg2 {[%clk 00:15:05]} {[%emt 00:00:01]} O-O {[%clk 00:14:00]} {[%emt
00:00:04]} 6. O-O {[%clk 00:15:05]} {[%emt 00:00:03]} c6 {[%clk 00:13:12]}
{[%emt 00:00:53]} 7. Qc2 {[%clk 00:15:05]} {[%emt 00:00:03]} Nbd7 {[%clk
00:13:12]} {[%emt 00:00:04]} 8. Nbd2 {[%clk 00:15:05]} {[%emt 00:00:03]} b6
{[%clk 00:12:37]} {[%emt 00:00:41]} 9. e4 {[%clk 00:15:05]} {[%emt 00:00:04]}
dxc4 {[%clk 00:12:04]} {[%emt 00:00:38]} 10. Nxc4 {[%clk 00:14:57]} {[%emt
00:00:13]} Bb7 {[%clk 00:11:59]} {[%emt 00:00:10]} 11. Bf4 {[%clk 00:14:44]}
{[%emt 00:00:17]} c5 {[%clk 00:11:50]} {[%emt 00:00:16]} 12. Rfe1 {[%clk
00:13:34]} {[%emt 00:01:14]} cxd4 {[%clk 00:11:46]} {[%emt 00:00:10]} 13. Nxd4
{[%clk 00:12:37]} {[%emt 00:01:02]} Rc8 {[%clk 00:11:27]} {[%emt 00:00:24]} 14.
Qa4 {[%clk 00:10:45]} {[%emt 00:01:57]} Nc5 {[%clk 00:10:29]} {[%emt 00:01:03]}
15. Qd1 {[%clk 00:10:16]} {[%emt 00:00:32]} Bxe4 {[%clk 00:10:29]} {[%emt
00:00:07]} 16. Bxe4 {[%clk 00:09:53]} {[%emt 00:00:28]} Ncxe4 {[%clk 00:10:22]}
{[%emt 00:00:13]} 17. Rc1 {[%clk 00:09:38]} {[%emt 00:00:21]} Bc5 {[%clk
00:08:40]} {[%emt 00:01:46]} 18. Be3 {[%clk 00:09:35]} {[%emt 00:00:08]} Qd5
{[%clk 00:07:22]} {[%emt 00:01:23]} 19. Nf3 {[%clk 00:07:53]} {[%emt 00:01:47]}
Qh5 {[%clk 00:06:49]} {[%emt 00:00:38]} 20. Bxc5 {[%clk 00:07:34]} {[%emt
00:00:24]} Rxc5 {[%clk 00:06:48]} {[%emt 00:00:06]} 21. Qd3 {[%clk 00:06:54]}
{[%emt 00:00:44]} Rd5 {[%clk 00:06:01]} {[%emt 00:00:52]} 22. Qa3 {[%clk
00:06:23]} {[%emt 00:00:36]} Rfd8 {[%clk 00:06:00]} {[%emt 00:00:07]} 23. Re3
{[%clk 00:05:00]} {[%emt 00:01:28]} Qf5 {[%clk 00:02:34]} {[%emt 00:03:30]} 24.
Rf1 {[%clk 00:04:05]} {[%emt 00:01:01]} Qh3 {[%clk 00:00:57]} {[%emt 00:01:42]}
25. Qb3 {[%clk 00:02:23]} {[%emt 00:01:46]} Rh5 {[%clk 00:00:33]} {[%emt
00:00:29]} 26. Rd1 {[%clk 00:02:09]} {[%emt 00:00:19]} Rf8 {[%clk 00:00:31]}
{[%emt 00:00:07]} 27. Nce5 {[%clk 00:00:44]} {[%emt 00:01:30]} Ng5 {[%clk
00:00:19]} {[%emt 00:00:17]} 28. Red3 {[%clk 00:00:38]} {[%emt 00:00:12]} Nxf3+
{[%clk 00:00:18]} {[%emt 00:00:07]} 29. Nxf3 {[%clk 00:00:38]} {[%emt
00:00:01]} Ng4 {[%clk 00:00:18]} 30. Rd8 {[%clk 00:00:37]} {[%emt 00:00:05]} g6
{[%clk 00:00:15]} {[%emt 00:00:08]} 31. Qb4 {[%clk 00:00:10]} {[%emt 00:00:31]}
Rc5 {[%clk 00:00:15]} {[%emt 00:00:02]} 32. Qd4 {[%clk 00:00:09]} {[%emt
00:00:06]} Rxd8 {[%clk 00:00:09]} {[%emt 00:00:12]} 33. Qxd8+ {[%clk 00:00:09]}
Kg7 {[%clk 00:00:09]} {[%emt 00:00:03]} 34. Qd4+ {[%clk 00:00:09]} {[%emt
00:00:02]} e5 {[%clk 00:00:09]} {[%emt 00:00:04]} 35. Qb4 {[%clk 00:00:07]}
{[%emt 00:00:07]} Qh5 {[%clk 00:00:09]} {[%emt 00:00:04]} 36. Qe4 {[%clk
00:00:06]} {[%emt 00:00:05]} Nxh2 {[%clk 00:00:09]} {[%emt 00:00:05]} 0-1

[Event "Chpt France Universitaire 2024"]
[Site "Bastia, France"]
[Date "2024.04.07"]
[Round "7.12"]
[White "Destic, Elena"]
[Black "Blanquet, Camille"]
[Result "0-1"]
[TimeControl "15min+5s"]
[WhiteElo "1946"]
[BlackElo "2035"]

1. e4 {[%emt 01:20:39]} c6 {[%emt 00:00:02]} 2. d4 {[%emt 00:00:04]} d5 {[%emt
00:00:02]} 3. e5 {[%emt 00:00:02]} c5 {[%emt 00:00:06]} 4. Nf3 {[%emt
00:00:02]} cxd4 {[%emt 00:00:44]} 5. Nxd4 {[%emt 00:00:19]} Nc6 {[%emt
00:00:09]} 6. Nxc6 {[%emt 00:01:32]} bxc6 {[%emt 00:00:03]} 7. Bd3 {[%emt
00:00:18]} e6 {[%emt 00:00:49]} 8. O-O {[%emt 00:00:05]} Ne7 {[%emt 00:00:19]}
9. c4 {[%emt 00:00:55]} Qc7 {[%emt 00:01:31]} 10. f4 {[%emt 00:00:26]} Qb6+
{[%emt 00:01:19]} 11. Kh1 {[%emt 00:00:03]} Bd7 {[%emt 00:00:36]} 12. Nc3
{[%emt 00:00:31]} Ng6 {[%emt 00:00:36]} 13. a4 {[%emt 00:02:26]} Bb4 {[%emt
00:00:21]} 14. Qe2 {[%emt 00:00:14]} Ne7 {[%emt 00:01:48]} 15. Bd2 {[%emt
00:01:49]} Rd8 {[%emt 00:01:04]} 16. a5 {[%emt 00:00:19]} Qb8 {[%emt 00:01:09]}
17. Qg4 {[%emt 00:00:43]} g6 {[%emt 00:01:06]} 18. Qf3 {[%emt 00:00:59]} Bc8
{[%emt 00:00:52]} 19. a6 {[%emt 00:00:25]} dxc4 {[%emt 00:00:16]} 20. Be4
{[%emt 00:00:35]} Rxd2 {[%emt 00:00:35]} 21. Bxc6+ {[%emt 00:00:02]} Kf8 {[%emt
00:00:59]} 22. Rfd1 {[%emt 00:00:57]} Rd3 {[%emt 00:00:42]} 23. Rxd3 {[%emt
00:00:05]} cxd3 {[%emt 00:00:02]} 24. Be4 {[%emt 00:00:34]} d2 {[%emt
00:00:20]} 25. Qd3 {[%emt 00:00:28]} Kg7 {[%emt 00:00:12]} 26. Qxd2 {[%emt
00:00:02]} Qb6 {[%emt 00:00:08]} 27. Qe2 {[%emt 00:00:08]} Rd8 {[%emt
00:00:04]} 28. h3 {[%emt 00:00:10]} Nf5 {[%emt 00:00:02]} 29. Bxf5 {[%emt
00:00:05]} exf5 {[%emt 00:00:02]} 30. Qc4 {[%emt 00:00:14]} Be6 {[%emt
00:00:05]} 31. Qe2 {[%emt 00:00:21]} Qc5 {[%emt 00:00:12]} 32. Na4 {[%emt
00:00:13]} Qd4 {[%emt 00:00:06]} 33. Rf1 {[%emt 00:00:12]} Bc4 {[%emt
00:00:04]} 34. Qf3 {[%emt 00:00:32]} Bxf1 35. Qxf1 Qd1 {[%emt 00:00:01]} 36.
Qxd1 {[%emt 00:00:05]} Rxd1+ {[%emt 00:00:02]} 37. Kh2 Ra1 {[%emt 00:00:09]}
0-1